fUST/lending_fUST_20240228
["ID","MTS","AMOUNT","RATE_DAILY","PERIOD"]
[315459472,1709050232140,-155.15670828,0.000181,2]
[315459473,1709050232152,-1591.62159516,0.00018101,2]
[315459475,1709050232165,-1892.3868304,0.00018102,2]
[315459476,1709050232175,-1883.83079052,0.000189,2]
[315459477,1709050232201,-1912.77581768,0.000189,2]
[315459534,1709050240829,-1029.51815849,0.000189,2]
[315459536,1709050240838,-421.73682366,0.000189,2]
[315459538,1709050240848,-379.84,0.00019068,3]
[315459540,1709050240857,-295.18562664,0.00019076,2]
[315459542,1709050240866,-290.12616002,0.00019076,2]
[315459544,1709050240875,-41.69700266,0.00019077,2]
[315459547,1709050240893,-702.23207487,0.00019077,2]
[315459549,1709050240903,-186.70503354,0.00019078,2]
[315459550,1709050240915,-206545.67708619,0.00019078,2]
[315459552,1709050240925,-4387.93379692,0.00019175,4]
[315459555,1709050240935,-157.69966264,0.00019176,2]
[315459557,1709050240945,-1747.70332613,0.00019177,2]
[315459559,1709050240954,-500.0,0.00019178,2]
[315459561,1709050240964,-500.0,0.00019178,2]
[315459564,1709050240973,-500.0,0.00019178,2]
[315459566,1709050240982,-500.0,0.00019178,2]
[315459568,1709050240991,-450.13004601,0.00019178,2]
[315459570,1709050241001,-500.0,0.00019178,2]
[315459572,1709050241010,-240.1435452,0.00019178,2]
[315459574,1709050241019,-500.0,0.00019178,2]
[315459576,1709050241029,-159.02038948,0.00019178,2]
[315459578,1709050241038,-500.0,0.00019178,2]
[315459580,1709050241047,-500.0,0.00019178,2]
[315459582,1709050241057,-500.0,0.00019178,2]
[315459584,1709050241066,-500.0,0.00019178,2]
[315459586,1709050241076,-500.0,0.00019178,2]
[315459600,1709050241205,-500.0,0.00019178,2]
[315459602,1709050241215,-500.0,0.00019178,2]
[315459604,1709050241226,-629.6441881,0.00019178,2]
[315459606,1709050241237,-500.0,0.00019178,2]
[315459608,1709050241247,-331.44832933,0.00019178,2]
[315459610,1709050241257,-500.0,0.00019178,2]
[315459611,1709050241267,-500.0,0.00019178,2]
[315459612,1709050241280,-500.0,0.00019178,2]
[315459613,1709050241290,-500.0,0.00019178,2]
[315459614,1709050241300,-500.0,0.00019178,2]
[315459615,1709050241310,-500.0,0.00019178,2]
[315459616,1709050241319,-500.0,0.00019178,2]
[315459617,1709050241330,-500.0,0.00019178,2]
[315459618,1709050241339,-500.0,0.00019178,2]
[315459619,1709050241348,-500.0,0.00019178,2]
[315459620,1709050241358,-500.0,0.00019178,2]
[315459621,1709050241367,-500.0,0.00019178,2]
[315459622,1709050241378,-500.0,0.00019178,2]
[315459623,1709050241388,-500.0,0.00019178,2]
[315459624,1709050241399,-1695.24,0.00019178,2]
[315459625,1709050241411,-252.75507226,0.00019178,2]
[315459626,1709050241423,-500.0,0.00019178,2]
[315459627,1709050241434,-451.77238634,0.00019178,2]
[315459628,1709050241444,-500.0,0.00019178,2]
[315459629,1709050241454,-601.31095344,0.00019178,2]
[315459630,1709050241465,-500.0,0.00019178,2]
[315459632,1709050241474,-500.0,0.00019178,2]
[315459634,1709050241484,-500.0,0.00019178,2]
[315459636,1709050241493,-500.0,0.00019178,2]
[315459638,1709050241503,-500.0,0.00019178,2]
[315459640,1709050241512,-500.0,0.00019178,2]
[315459642,1709050241521,-500.0,0.00019178,2]
[315459644,1709050241530,-500.0,0.00019178,2]
[315459646,1709050241540,-500.0,0.00019178,2]
[315459648,1709050241549,-500.0,0.00019178,2]
[315459650,1709050241560,-500.0,0.00019178,2]
[315459652,1709050241569,-500.0,0.00019178,2]
[315459654,1709050241579,-500.0,0.00019178,2]
[315459656,1709050241589,-500.0,0.00019178,2]
[315459658,1709050241599,-500.0,0.00019178,2]
[315459660,1709050241608,-500.0,0.00019178,2]
[315459662,1709050241617,-500.0,0.00019178,2]
[315459664,1709050241626,-687.05,0.00019178,2]
[315459666,1709050241635,-500.0,0.00019178,2]
[315459668,1709050241645,-582.24951827,0.00019178,2]
[315459670,1709050241655,-4029.97,0.00019178,2]
[315459672,1709050241668,-1818.67,0.00019178,2]
[315459674,1709050241679,-500.0,0.00019178,2]
[315459676,1709050241689,-2895.64,0.00019178,2]
[315459678,1709050241700,-1823.07,0.00019178,2]
[315459680,1709050241710,-500.0,0.00019178,2]
[315459682,1709050241720,-500.0,0.00019178,2]
[315459684,1709050241729,-500.0,0.00019178,2]
[315459686,1709050241740,-500.0,0.00019178,2]
[315459688,1709050241750,-450.69066606,0.00019178,2]
[315459690,1709050241759,-500.52309887,0.00019178,2]
[315459692,1709050241768,-340.24388928,0.00019178,2]
[315459694,1709050241778,-500.0,0.00019178,2]
[315459696,1709050241788,-923.44,0.00019178,2]
[315459698,1709050241797,-697.61,0.00019178,2]
[315459700,1709050241806,-500.0,0.00019178,2]
[315459702,1709050241815,-500.0,0.00019178,2]
[315459704,1709050241825,-500.0,0.00019178,2]
[315459706,1709050241834,-500.0,0.00019178,2]
[315459708,1709050241843,-500.0,0.00019178,2]
[315459710,1709050241852,-500.0,0.00019178,2]
[315459712,1709050241861,-500.0,0.00019178,2]
[315459714,1709050241870,-500.0,0.00019178,2]
[315459716,1709050241880,-500.0,0.00019178,2]
[315459718,1709050241889,-1000.0,0.00019178,2]
[315459720,1709050241899,-500.0,0.00019178,2]
[315459722,1709050241909,-500.0,0.00019178,2]
[315459725,1709050241922,-500.0,0.00019178,2]
[315459727,1709050241931,-500.0,0.00019178,2]
[315459729,1709050241941,-500.0,0.00019178,2]
[315459731,1709050241950,-500.0,0.00019178,2]
[315459733,1709050241960,-500.0,0.00019178,2]
[315459735,1709050241970,-341.5224866,0.00019178,2]
[315459737,1709050241979,-817.96,0.00019178,2]
[315459739,1709050241990,-500.0,0.00019178,2]
[315459741,1709050242000,-500.0,0.00019178,2]
[315459743,1709050242009,-500.0,0.00019178,2]
[315459745,1709050242021,-503.86862046,0.00019178,2]
[315459747,1709050242030,-500.0,0.00019178,2]
[315459749,1709050242040,-502.22643844,0.00019178,2]
[315459750,1709050242050,-298.46954899,0.00019178,2]
[315459752,1709050242059,-775.64,0.00019178,2]
[315459754,1709050242069,-500.0,0.00019178,2]
[315459756,1709050242078,-640.88483016,0.00019178,2]
[315459758,1709050242089,-500.0,0.00019178,2]
[315459760,1709050242098,-500.0,0.00019178,2]
[315459762,1709050242108,-500.0,0.00019178,2]
[315459764,1709050242117,-155.0,0.00019178,2]
[315459766,1709050242127,-500.0,0.00019178,2]
[315459768,1709050242136,-500.0,0.00019178,2]
[315459771,1709050242146,-500.0,0.00019178,2]
[315459773,1709050242158,-500.0,0.00019178,2]
[315459775,1709050242176,-1925.52,0.00019178,2]
[315459776,1709050242185,-500.0,0.00019178,2]
[315459779,1709050242199,-500.0,0.00019178,2]
[315459781,1709050242215,-521.78939552,0.00019178,2]
[315459783,1709050242224,-500.0,0.00019178,2]
[315459785,1709050242233,-500.0,0.00019178,2]
[315459787,1709050242242,-1793.5,0.00019178,2]
[315459789,1709050242252,-500.0,0.00019178,2]
[315459791,1709050242262,-501.01435665,0.00019178,2]
[315459793,1709050242271,-518.19944993,0.00019178,2]
[315459795,1709050242282,-500.0,0.00019178,2]
[315459797,1709050242293,-500.0,0.00019178,2]
[315459799,1709050242303,-500.0,0.00019178,2]
[315459801,1709050242313,-500.0,0.00019178,2]
[315459803,1709050242323,-500.0,0.00019178,2]
[315459805,1709050242333,-500.0,0.00019178,2]
[315459807,1709050242343,-500.0,0.00019178,2]
[315459809,1709050242353,-500.0,0.00019178,2]
[315459811,1709050242363,-500.0,0.00019178,2]
[315459813,1709050242372,-500.0,0.00019178,2]
[315459815,1709050242382,-500.0,0.00019178,2]
[315459817,1709050242392,-500.0,0.00019178,2]
[315459819,1709050242401,-500.0,0.00019178,2]
[315459821,1709050242411,-500.0,0.00019178,2]
[315459822,1709050242427,-500.0,0.00019178,2]
[315459824,1709050242437,-500.0,0.00019178,2]
[315459826,1709050242446,-500.0,0.00019178,2]
[315459828,1709050242456,-220.04820398,0.00019178,2]
[315459830,1709050242466,-500.0,0.00019178,2]
[315459832,1709050242475,-500.64514974,0.00019178,2]
[315459834,1709050242484,-500.0,0.00019178,2]
[315459836,1709050242493,-1056.5,0.00019178,2]
[315459838,1709050242503,-500.0,0.00019178,2]
[315459840,1709050242512,-500.0,0.00019178,2]
[315459842,1709050242522,-500.0,0.00019178,2]
[315459845,1709050242531,-151.0,0.00019178,2]
[315459847,1709050242541,-885.32,0.00019178,2]
[315459850,1709050242550,-500.0,0.00019178,2]
[315459853,1709050242560,-722.65,0.00019178,2]
[315459856,1709050242569,-501.22178081,0.00019178,2]
[315459859,1709050242579,-495.61212969,0.00019178,2]
[315459861,1709050242589,-500.0,0.00019178,2]
[315459863,1709050242598,-500.0,0.00019178,2]
[315459865,1709050242607,-501.3868524,0.00019178,2]
[315459867,1709050242617,-501.22080587,0.00019178,2]
[315459869,1709050242626,-500.0,0.00019178,2]
[315459872,1709050242636,-970.52,0.00019178,2]
[315459875,1709050242645,-500.0,0.00019178,2]
[315459878,1709050242655,-400.32969916,0.00019178,2]
[315459880,1709050242667,-500.0,0.00019178,2]
[315459883,1709050242677,-1050.91,0.00019178,2]
[315459886,1709050242686,-1132.13,0.00019178,2]
[315459889,1709050242696,-500.0,0.00019178,2]
[315459891,1709050242707,-500.0,0.00019178,2]
[315459894,1709050242716,-500.0,0.00019178,2]
[315459897,1709050242726,-500.0,0.00019178,2]
[315459899,1709050242737,-500.0,0.00019178,2]
[315459902,1709050242747,-1473.84,0.00019178,2]
[315459905,1709050242758,-935.67,0.00019178,2]
[315459908,1709050242769,-2357.65,0.00019178,2]
[315459911,1709050242779,-904.43,0.00019178,2]
[315459913,1709050242790,-204.37139353,0.00019178,2]
[315459916,1709050242801,-500.0,0.00019178,2]
[315459919,1709050242813,-500.0,0.00019178,2]
[315459923,1709050242824,-2204.31,0.00019178,2]
[315459924,1709050242834,-500.0,0.00019178,2]
[315459927,1709050242845,-500.0,0.00019178,2]
[315459930,1709050242857,-500.0,0.00019178,2]
[315459934,1709050242867,-2602.38,0.00019178,2]
[315459937,1709050242878,-500.0,0.00019178,2]
[315459940,1709050242889,-500.0,0.00019178,2]
[315459941,1709050242899,-500.0,0.00019178,2]
[315459944,1709050242910,-500.0,0.00019178,2]
[315459948,1709050242927,-500.0,0.00019178,2]
[315459949,1709050242937,-500.67580525,0.00019178,2]
[315459953,1709050242949,-334.51167567,0.00019178,2]
[315459956,1709050242960,-500.0,0.00019178,2]
[315459958,1709050242970,-500.0,0.00019178,2]
[315459962,1709050242981,-500.0,0.00019178,2]
[315459963,1709050242992,-500.0,0.00019178,2]
[315459967,1709050243003,-443.86900434,0.00019178,2]
[315459970,1709050243014,-500.0,0.00019178,2]
[315459972,1709050243026,-11034.35,0.00019178,2]
[315459975,1709050243036,-3042.67,0.00019178,2]
[315459978,1709050243047,-500.0,0.00019178,2]
[315459981,1709050243058,-500.0,0.00019178,2]
[315459983,1709050243068,-500.0,0.00019178,2]
[315459984,1709050243080,-234.6909189,0.00019178,2]
[315459988,1709050243091,-2198.18,0.00019178,2]
[315459991,1709050243102,-500.0,0.00019178,2]
[315459993,1709050243113,-500.0,0.00019178,2]
[315459996,1709050243130,-500.0,0.00019178,2]
[315459999,1709050243142,-5560.64,0.00019178,2]
[315460002,1709050243154,-1000.0,0.00019178,2]
[315460005,1709050243176,-500.0,0.00019178,2]
[315460008,1709050243186,-226.05511992,0.00019178,2]
[315460010,1709050243196,-500.0,0.00019178,2]
[315460013,1709050243211,-500.0,0.00019178,2]
[315460015,1709050243222,-241.11026349,0.00019178,2]
[315460017,1709050243234,-500.0,0.00019178,2]
[315460019,1709050243244,-24225.74,0.00019178,2]
[315460021,1709050243255,-500.0,0.00019178,2]
[315460023,1709050243265,-500.0,0.00019178,2]
[315460025,1709050243276,-500.0,0.00019178,2]
[315460027,1709050243285,-522.5209825,0.00019178,2]
[315460029,1709050243297,-500.0,0.00019178,2]
[315460031,1709050243307,-500.0,0.00019178,2]
[315460033,1709050243317,-500.0,0.00019178,2]
[315460035,1709050243327,-5489.01,0.00019178,2]
[315460037,1709050243337,-500.0,0.00019178,2]
[315460039,1709050243347,-500.0,0.00019178,2]
[315460041,1709050243356,-500.0,0.00019178,2]
[315460043,1709050243366,-500.0,0.00019178,2]
[315460054,1709050243472,-500.0,0.00019178,2]
[315460056,1709050243483,-500.0,0.00019178,2]
[315460058,1709050243494,-500.0,0.00019178,2]
[315460060,1709050243504,-500.65277545,0.00019178,2]
[315460062,1709050243515,-500.0,0.00019178,2]
[315460064,1709050243525,-500.0,0.00019178,2]
[315460066,1709050243544,-500.0,0.00019178,2]
[315460068,1709050243554,-1810.45,0.00019178,2]
[315460070,1709050243565,-500.0,0.00019178,2]
[315460072,1709050243576,-500.0,0.00019178,2]
[315460074,1709050243589,-500.0,0.00019178,2]
[315460076,1709050243600,-500.0,0.00019178,2]
[315460078,1709050243611,-500.0,0.00019178,2]
[315460080,1709050243621,-500.0,0.00019178,2]
[315460082,1709050243632,-500.0,0.00019178,2]
[315460084,1709050243649,-500.0,0.00019178,2]
[315460086,1709050243660,-500.0,0.00019178,2]
[315460088,1709050243677,-500.0,0.00019178,2]
[315460090,1709050243688,-500.0,0.00019178,2]
[315460092,1709050243698,-515.4162061,0.00019178,2]
[315460094,1709050243708,-500.0,0.00019178,2]
[315460096,1709050243719,-642.46,0.00019178,2]
[315460098,1709050243730,-500.0,0.00019178,2]
[315460100,1709050243740,-1686.51,0.00019178,2]
[315460102,1709050243753,-618.37454632,0.00019178,2]
[315460104,1709050243764,-500.0,0.00019178,2]
[315460106,1709050243775,-500.0,0.00019178,2]
[315460108,1709050243785,-501.12706915,0.00019178,2]
[315460110,1709050243797,-500.0,0.00019178,2]
[315460112,1709050243807,-500.0,0.00019178,2]
[315460114,1709050243818,-500.0,0.00019178,2]
[315460116,1709050243828,-500.32824519,0.00019178,2]
[315460118,1709050243838,-500.0,0.00019178,2]
[315460120,1709050243852,-667.21,0.00019178,2]
[315460122,1709050243863,-500.11571016,0.00019178,2]
[315460124,1709050243873,-8327.91,0.00019178,2]
[315460126,1709050243883,-500.0,0.00019178,2]
[315460128,1709050243893,-209.21007188,0.00019178,2]
[315460130,1709050243904,-500.0,0.00019178,2]
[315460132,1709050243920,-501.05407253,0.00019178,2]
[315460134,1709050243932,-500.0,0.00019178,2]
[315460136,1709050243950,-4029.89,0.00019178,2]
[315460138,1709050243960,-500.0,0.00019178,2]
[315460140,1709050243970,-1013.1,0.00019178,2]
[315460142,1709050243981,-500.0,0.00019178,2]
[315460144,1709050243992,-500.0,0.00019178,2]
[315460146,1709050244003,-1013.1,0.00019178,2]
[315460148,1709050244013,-1013.1,0.00019178,2]
[315460150,1709050244023,-1013.1,0.00019178,2]
[315460152,1709050244034,-1013.1,0.00019178,2]
[315460154,1709050244044,-1013.1,0.00019178,2]
[315460156,1709050244055,-4878.61,0.00019178,2]
[315460158,1709050244067,-3908.86,0.00019178,2]
[315460160,1709050244077,-500.0,0.00019178,2]
[315460162,1709050244088,-500.0,0.00019178,2]
[315460164,1709050244099,-500.0,0.00019178,2]
[315460166,1709050244109,-500.0,0.00019178,2]
[315460168,1709050244118,-500.0,0.00019178,2]
[315460170,1709050244130,-500.0,0.00019178,2]
[315460172,1709050244140,-500.0,0.00019178,2]
[315460174,1709050244150,-508.23691754,0.00019178,2]
[315460176,1709050244173,-212.87883413,0.00019178,2]
[315460178,1709050244184,-21141.42,0.00019178,2]
[315460180,1709050244198,-3184.25,0.00019178,2]
[315460182,1709050244210,-694.82180753,0.00019178,2]
[315460184,1709050244221,-186.181917,0.00019178,2]
[315460186,1709050244232,-190.911809,0.00019178,2]
[315460188,1709050244242,-166.666666,0.00019178,2]
[315460191,1709050244257,-186.288497,0.00019178,2]
[315460193,1709050244268,-622.39666464,0.00019345,2]
[315460194,1709050244279,-500.0,0.00019351,2]
[315460197,1709050244289,-238.47583384,0.00019351,2]
[315460199,1709050244300,-151.234594,0.00019351,2]
[315460200,1709050244310,-1519.40144155,0.00019351,2]
[315460202,1709050244320,-227.094003,0.00019351,2]
[315460204,1709050244330,-227.094003,0.00019351,2]
[315460206,1709050244340,-151.584815,0.00019351,2]
[315460208,1709050244350,-1190.292077,0.00019351,2]
[315460210,1709050244361,-1190.292077,0.00019351,2]
[315460212,1709050244372,-151.0,0.00019351,2]
[315460214,1709050244383,-151.0,0.00019351,2]
[315460216,1709050244393,-186.70503351,0.00019352,2]
[315460218,1709050244405,-258.671015,0.00019352,2]
[315460221,1709050244419,-258.671015,0.00019352,2]
[315460223,1709050244430,-2523.1192889,0.00019352,2]
[315460224,1709050244441,-153.0,0.000194,2]
[315460226,1709050244452,-153.0,0.000194,2]
[315460228,1709050244463,-153.0,0.000194,2]
[315460231,1709050244477,-1013.1,0.00019451,2]
[315460233,1709050244487,-1013.1,0.00019451,2]
[315460235,1709050244497,-1013.1,0.00019451,2]
[315460237,1709050244508,-1013.1,0.00019451,2]
[315460239,1709050244518,-1013.1,0.00019451,2]
[315460241,1709050244528,-500.0,0.00019452,2]
[315460243,1709050244539,-500.0,0.00019452,2]
[315460244,1709050244550,-500.0,0.00019452,2]
[315460247,1709050244560,-310.0,0.00019452,2]
[315460248,1709050244571,-210.59816599,0.00019452,2]
[315460251,1709050244583,-500.0,0.00019452,2]
[315460253,1709050244593,-500.0,0.00019452,2]
[315460254,1709050244603,-500.0,0.00019452,2]
[315460257,1709050244613,-500.0,0.00019452,2]
[315460259,1709050244624,-151.200963,0.00019452,2]
[315460260,1709050244635,-500.0,0.00019452,2]
[315460262,1709050244645,-500.0,0.00019452,2]
[315460264,1709050244657,-337.0351218,0.00019452,2]
[315460266,1709050244672,-500.0,0.00019452,2]
[315460268,1709050244683,-500.0,0.00019452,2]
[315460270,1709050244694,-500.0,0.00019452,2]
[315460272,1709050244705,-500.0,0.00019452,2]
[315460274,1709050244715,-502.85792086,0.00019452,2]
[315460276,1709050244726,-500.0,0.00019452,2]
[315460278,1709050244736,-500.0,0.00019452,2]
[315460280,1709050244746,-373.58267349,0.00019452,2]
[315460282,1709050244755,-332.96266371,0.00019452,2]
[315460284,1709050244764,-500.0,0.00019452,2]
[315460286,1709050244774,-500.0,0.00019452,2]
[315460288,1709050244783,-1695.24,0.00019452,2]
[315460290,1709050244792,-500.0,0.00019452,2]
[315460292,1709050244802,-500.0,0.00019452,2]
[315460294,1709050244811,-500.0,0.00019452,2]
[315460296,1709050244820,-501.95643743,0.00019452,2]
[315460298,1709050244830,-500.0,0.00019452,2]
[315460300,1709050244839,-502.36541284,0.00019452,2]
[315460302,1709050244849,-500.0,0.00019452,2]
[315460304,1709050244858,-500.0,0.00019452,2]
[315460306,1709050244867,-500.0,0.00019452,2]
[315460308,1709050244877,-500.0,0.00019452,2]
[315460310,1709050244887,-501.21301573,0.00019452,2]
[315460312,1709050244897,-500.0,0.00019452,2]
[315460314,1709050244906,-500.0,0.00019452,2]
[315460316,1709050244918,-500.0,0.00019452,2]
[315460318,1709050244928,-500.0,0.00019452,2]
[315460320,1709050244954,-500.0,0.00019452,2]
[315460322,1709050244965,-500.0,0.00019452,2]
[315460323,1709050244976,-687.05,0.00019452,2]
[315460326,1709050244990,-500.0,0.00019452,2]
[315460328,1709050245001,-4029.97,0.00019452,2]
[315460330,1709050245011,-1818.67,0.00019452,2]
[315460332,1709050245023,-500.0,0.00019452,2]
[315460334,1709050245033,-2895.64,0.00019452,2]
[315460336,1709050245044,-1823.07,0.00019452,2]
[315460338,1709050245054,-500.0,0.00019452,2]
[315460340,1709050245064,-190.12652069,0.00019452,2]
[315460342,1709050245075,-500.0,0.00019452,2]
[315460345,1709050245086,-500.0,0.00019452,2]
[315460347,1709050245096,-500.0,0.00019452,2]
[315460348,1709050245105,-923.44,0.00019452,2]
[315460351,1709050245115,-697.61,0.00019452,2]
[315460353,1709050245125,-241.83685928,0.00019452,2]
[315460354,1709050245135,-500.0,0.00019452,2]
[315460356,1709050245144,-227.094003,0.00019452,2]
[315460358,1709050245155,-227.094003,0.00019452,2]
[315460360,1709050245176,-227.094003,0.00019452,2]
[315460362,1709050245185,-227.094003,0.00019452,2]
[315460364,1709050245194,-227.094003,0.00019452,2]
[315460366,1709050245206,-227.094003,0.00019452,2]
[315460368,1709050245215,-500.0,0.00019452,2]
[315460370,1709050245224,-501.23732277,0.00019452,2]
[315460372,1709050245233,-500.0,0.00019452,2]
[315460375,1709050245245,-422.35708752,0.00019452,2]
[315460377,1709050245254,-500.0,0.00019452,2]
[315460379,1709050245264,-500.0,0.00019452,2]
[315460381,1709050245274,-160.72308855,0.00019452,2]
[315460383,1709050245283,-500.0,0.00019452,2]
[315460384,1709050245294,-211.14111785,0.00019452,2]
[315460385,1709050245303,-500.0,0.00019452,2]
[315460386,1709050245312,-500.0,0.00019452,2]
[315460387,1709050245321,-500.0,0.00019452,2]
[315460388,1709050245331,-500.0,0.00019452,2]
[315460389,1709050245340,-500.0,0.00019452,2]
[315460390,1709050245350,-817.96,0.00019452,2]
[315460391,1709050245359,-500.0,0.00019452,2]
[315460392,1709050245368,-500.0,0.00019452,2]
[315460393,1709050245377,-500.0,0.00019452,2]
[315460394,1709050245387,-500.0,0.00019452,2]
[315460395,1709050245396,-775.64,0.00019452,2]
[315460396,1709050245405,-500.0,0.00019452,2]
[315460397,1709050245416,-500.0,0.00019452,2]
[315460398,1709050245426,-500.0,0.00019452,2]
[315460400,1709050245436,-500.0,0.00019452,2]
[315460402,1709050245445,-500.0,0.00019452,2]
[315460404,1709050245456,-500.0,0.00019452,2]
[315460406,1709050245465,-500.0,0.00019452,2]
[315460408,1709050245475,-1925.52,0.00019452,2]
[315460410,1709050245484,-1793.5,0.00019452,2]
[315460412,1709050245496,-500.0,0.00019452,2]
[315460415,1709050245505,-500.0,0.00019452,2]
[315460419,1709050245515,-249.69840039,0.00019452,2]
[315460422,1709050245524,-395.16181797,0.00019452,2]
[315460425,1709050245534,-1190.292077,0.00019452,2]
[315460427,1709050245543,-1190.292077,0.00019452,2]
[315460430,1709050245552,-1190.292077,0.00019452,2]
[315460433,1709050245562,-500.0,0.00019452,2]
[315460448,1709050245656,-500.0,0.00019452,2]
[315460451,1709050245669,-1190.292077,0.00019452,2]
[315460454,1709050245679,-1190.292077,0.00019452,2]
[315460457,1709050245688,-500.0,0.00019452,2]
[315460460,1709050245698,-1190.292077,0.00019452,2]
[315460463,1709050245708,-500.0,0.00019452,2]
[315460466,1709050245718,-500.0,0.00019452,2]
[315460469,1709050245728,-500.0,0.00019452,2]
[315460472,1709050245737,-282.6196593,0.00019452,2]
[315460475,1709050245747,-500.0,0.00019452,2]
[315460478,1709050245757,-500.0,0.00019452,2]
[315460481,1709050245766,-500.0,0.00019452,2]
[315460484,1709050245774,-500.0,0.00019452,2]
[315460487,1709050245783,-500.0,0.00019452,2]
[315460490,1709050245792,-1056.5,0.00019452,2]
[315460493,1709050245804,-500.0,0.00019452,2]
[315460496,1709050245814,-500.0,0.00019452,2]
[315460499,1709050245823,-500.0,0.00019452,2]
[315460502,1709050245832,-151.0,0.00019452,2]
[315460505,1709050245841,-885.32,0.00019452,2]
[315460507,1709050245851,-500.0,0.00019452,2]
[315460509,1709050245861,-722.65,0.00019452,2]
[315460511,1709050245872,-500.0,0.00019452,2]
[315460513,1709050245882,-500.0,0.00019452,2]
[315460515,1709050245891,-500.0,0.00019452,2]
[315460517,1709050245902,-970.52,0.00019452,2]
[315460520,1709050245917,-500.0,0.00019452,2]
[315460522,1709050245928,-258.671015,0.00019452,2]
[315460524,1709050245937,-500.0,0.00019452,2]
[315460525,1709050245960,-258.671015,0.00019452,2]
[315460527,1709050245970,-1050.91,0.00019452,2]
[315460529,1709050245980,-258.671015,0.00019452,2]
[315460531,1709050245989,-1132.13,0.00019452,2]
[315460533,1709050245998,-500.0,0.00019452,2]
[315460535,1709050246007,-258.671015,0.00019452,2]
[315460537,1709050246017,-258.671015,0.00019452,2]
[315460539,1709050246026,-500.0,0.00019452,2]
[315460541,1709050246035,-258.671015,0.00019452,2]
[315460543,1709050246045,-500.0,0.00019452,2]
[315460545,1709050246054,-500.0,0.00019452,2]
[315460547,1709050246064,-306.64800142,0.00019452,2]
[315460549,1709050246073,-1473.84,0.00019452,2]
[315460551,1709050246082,-935.67,0.00019452,2]
[315460553,1709050246091,-2357.65,0.00019452,2]
[315460556,1709050246101,-904.43,0.00019452,2]
[315460558,1709050246111,-151.0,0.00019452,2]
[315460559,1709050246120,-151.0,0.00019452,2]
[315460562,1709050246129,-151.0,0.00019452,2]
[315460564,1709050246138,-500.0,0.00019452,2]
[315460565,1709050246148,-500.0,0.00019452,2]
[315460568,1709050246157,-2204.31,0.00019452,2]
[315460569,1709050246174,-500.0,0.00019452,2]
[315460572,1709050246183,-500.0,0.00019452,2]
[315460573,1709050246192,-500.0,0.00019452,2]
[315460575,1709050246203,-2602.38,0.00019452,2]
[315460577,1709050246213,-500.0,0.00019452,2]
[315460580,1709050246222,-588.88834947,0.00019452,2]
[315460582,1709050246231,-500.0,0.00019452,2]
[315460583,1709050246242,-500.0,0.00019452,2]
[315460586,1709050246252,-500.0,0.00019452,2]
[315460587,1709050246262,-500.0,0.00019452,2]
[315460589,1709050246271,-500.0,0.00019452,2]
[315460591,1709050246281,-500.0,0.00019452,2]
[315460593,1709050246290,-11034.35,0.00019452,2]
[315460596,1709050246299,-3042.67,0.00019452,2]